bitfinex/quotes_BTCUSD_20240723
["timestamp","ask_amount","ask_price","bid_price","bid_amount"]
[1721718650197,0.00184,66631.0,66630.0,0.68238845]
[1721718650403,0.00184,66631.0,66630.0,0.98255345]
[1721718652515,0.04771323,66631.0,66630.0,0.68238845]
[1721718653075,0.04771323,66631.0,66630.0,0.98255345]
[1721718654547,0.04771323,66631.0,66630.0,0.53230645]
[1721718654752,0.49795323,66631.0,66630.0,0.46720645]
[1721718655436,0.19779323,66631.0,66630.0,0.46720645]
[1721718655568,0.49795323,66631.0,66630.0,0.46720645]
[1721718655928,0.49795323,66631.0,66630.0,0.46017991]
[1721718656333,0.49795323,66631.0,66630.0,0.46666409]
[1721718658198,0.00184,66631.0,66630.0,0.46666409]
[1721718658456,0.04771323,66631.0,66630.0,0.46666409]
[1721718659681,0.19779323,66631.0,66630.0,0.46666409]
[1721718661057,0.79811323,66631.0,66630.0,0.46666409]
[1721718661269,1.09860197,66631.0,66630.0,0.31316]
[1721718661476,1.39876197,66631.0,66630.0,0.31966089]
[1721718661675,1.31136265,66631.0,66630.0,0.31966089]
[1721718661901,1.31136265,66631.0,66630.0,0.31316]
[1721718662056,1.31036265,66631.0,66630.0,0.32218128]
[1721718662438,1.31136265,66631.0,66630.0,0.33068217]
[1721718662847,1.84613507,66631.0,66630.0,0.32868217]
[1721718663006,1.84613507,66631.0,66630.0,0.32218128]
[1721718663007,2.38634608,66631.0,66630.0,0.32218128]
[1721718663180,2.38634608,66631.0,66630.0,0.32318128]
[1721718663687,2.38634608,66631.0,66630.0,0.31218128]
[1721718663894,2.68650608,66631.0,66630.0,0.01202128]
[1721718664095,2.68750608,66631.0,66630.0,0.01202128]
[1721718664415,2.52164458,66631.0,66630.0,0.01202128]
[1721718664639,2.52164458,66631.0,66630.0,0.01102128]
[1721718664640,2.52101065,66631.0,66630.0,0.01102128]
[1721718664826,2.42534145,66631.0,66630.0,0.01202128]
[1721718665077,2.53321468,66631.0,66630.0,0.01302128]
[1721718665276,2.53321468,66631.0,66630.0,0.01202128]
[1721718665483,2.53320394,66631.0,66630.0,0.01202128]
[1721718665658,2.53920394,66631.0,66630.0,0.01202128]
[1721718666238,2.70503921,66631.0,66630.0,0.01202128]
[1721718666649,2.36364913,66631.0,66630.0,0.01202128]
[1721718666858,2.36236178,66631.0,66630.0,0.01202128]
[1721718667058,2.22803671,66631.0,66630.0,0.01202128]
[1721718667263,2.27803671,66631.0,66630.0,0.01202128]
[1721718667473,2.19251248,66631.0,66630.0,0.01202128]
[1721718667848,2.27766175,66631.0,66630.0,0.01202128]
[1721718668052,2.7247844,66631.0,66630.0,0.01202128]
[1721718668636,2.85908932,66631.0,66630.0,0.01202128]
[1721718668845,2.7247844,66631.0,66630.0,0.01202128]
[1721718669090,2.4246244,66631.0,66630.0,0.01202128]
[1721718670073,2.4126244,66631.0,66630.0,0.01102128]
[1721718670291,2.3626244,66631.0,66630.0,0.01102128]
[1721718670498,2.29147513,66631.0,66630.0,0.01102128]
[1721718670703,2.51073241,66631.0,66630.0,0.01102128]
[1721718671044,2.13051248,66631.0,66630.0,0.01102128]
[1721718671247,2.36378097,66631.0,66630.0,0.01102128]
[1721718671458,2.36376677,66631.0,66630.0,0.01102128]
[1721718671662,2.35776677,66631.0,66630.0,0.01102128]
[1721718671773,2.34376677,66631.0,66630.0,0.01102128]
[1721718671978,2.50472942,66631.0,66630.0,0.01102128]
[1721718672406,2.56872942,66631.0,66630.0,0.01102128]
[1721718672630,2.43448381,66631.0,66630.0,0.01102128]
[1721718672832,2.42048381,66631.0,66630.0,0.01102128]
[1721718673031,2.72064381,66631.0,66630.0,0.01102128]
[1721718673229,2.43448381,66631.0,66630.0,0.01102128]
[1721718673449,2.4202755,66631.0,66630.0,0.01102128]
[1721718673647,2.55450328,66631.0,66630.0,0.01102128]
[1721718673901,2.4342755,66631.0,66630.0,0.01102128]
[1721718674103,2.56850543,66631.0,66630.0,0.01102128]
[1721718675424,1.84369523,66621.0,66620.0,0.000924]
[1721718675765,1.80600456,66621.0,66620.0,0.000924]
[1721718675916,1.91782566,66621.0,66620.0,0.000924]
[1721718676236,2.10242674,66621.0,66620.0,0.000924]
[1721718676438,1.77141741,66621.0,66620.0,0.000924]
[1721718676650,1.57499523,66621.0,66620.0,0.000924]
[1721718676858,1.58999523,66621.0,66620.0,0.000924]
[1721718677680,1.65707592,66621.0,66620.0,0.000924]
[1721718677853,1.35687092,66621.0,66620.0,0.000924]
[1721718677991,1.28979023,66621.0,66620.0,0.000924]
[1721718678200,0.91138523,66621.0,66620.0,0.000924]
[1721718681980,1.35378448,66621.0,66620.0,0.000924]
[1721718684802,1.21159023,66621.0,66620.0,0.000924]
[1721718688435,1.34037341,66621.0,66620.0,0.000924]
[1721718689056,1.34044188,66621.0,66620.0,0.000924]
[1721718689891,1.04023688,66621.0,66620.0,0.000924]
[1721718690302,1.34044188,66621.0,66620.0,0.000924]
[1721718690507,1.48740453,66621.0,66620.0,0.000924]
[1721718690866,1.34044188,66621.0,66620.0,0.000924]
[1721718691308,1.29571815,66621.0,66620.0,0.000924]
[1721718692084,1.21159023,66621.0,66620.0,0.000924]
[1721718692385,1.04036206,66621.0,66620.0,0.000924]
[1721718692586,0.99561828,66621.0,66620.0,0.000924]
[1721718692784,1.14258093,66621.0,66620.0,0.000924]
[1721718693507,1.20968841,66621.0,66620.0,0.000924]
[1721718695265,1.20968343,66621.0,66620.0,0.000924]
[1721718695422,1.20969299,66621.0,66620.0,0.000924]
[1721718695743,1.14253979,66621.0,66620.0,0.000924]
[1721718697336,1.23207761,66621.0,66620.0,0.000924]
[1721718697775,1.53228261,66621.0,66620.0,0.000924]
[1721718698380,1.44273663,66621.0,66620.0,0.000924]
[1721718698604,0.99556916,66621.0,66620.0,0.000924]
[1721718698771,0.99556916,66621.0,66620.0,0.061224]
[1721718699172,1.06276941,66621.0,66620.0,0.061224]
[1721718699404,0.99556916,66621.0,66620.0,0.061224]
[1721718700336,1.10756158,66621.0,66620.0,0.061224]
[1721718700555,0.99556916,66621.0,66620.0,0.061224]
[1721718701427,1.20830522,66621.0,66620.0,0.000924]
[1721718701742,1.50851022,66621.0,66620.0,0.000924]
[1721718704511,1.64294525,66621.0,66620.0,0.000924]
[1721718704904,1.57091361,66621.0,66620.0,0.000924]
[1721718705300,1.87111861,66621.0,66620.0,0.000924]
[1721718705502,1.92111861,66621.0,66620.0,0.000924]
[1721718706673,1.87111861,66621.0,66620.0,0.000924]
[1721718707290,1.92111861,66621.0,66620.0,0.000924]
[1721718707540,1.88368671,66621.0,66620.0,0.000924]
[1721718707655,1.9086998,66621.0,66620.0,0.000924]
[1721718707859,1.82108671,66621.0,66620.0,0.000924]
[1721718708060,1.90814576,66621.0,66620.0,0.000924]
[1721718708319,1.85814576,66621.0,66620.0,0.000924]
[1721718709269,1.50794076,66621.0,66620.0,0.000924]
[1721718709472,1.37744928,66621.0,66620.0,0.000924]
[1721718710495,1.29039023,66621.0,66620.0,0.000924]
[1721718710622,1.37758197,66621.0,66620.0,0.000924]
[1721718710852,1.37758191,66621.0,66620.0,0.000924]
[1721718711052,1.52454456,66621.0,66620.0,0.000924]
[1721718713143,1.37758191,66621.0,66620.0,0.000924]
[1721718713648,1.37764888,66621.0,66620.0,0.000924]
[1721718716558,1.29039023,66621.0,66620.0,0.000924]
[1721718716791,1.37787779,66621.0,66620.0,0.000924]
[1721718716940,1.52957947,66621.0,66620.0,0.000924]
[1721718717144,1.67654212,66621.0,66620.0,0.000924]
[1721718717526,1.29907779,66621.0,66620.0,0.000924]
[1721718717762,0.99887279,66621.0,66620.0,0.065824]
[1721718718593,1.13372413,66621.0,66620.0,0.065824]
[1721718719632,1.1338433,66621.0,66620.0,0.065824]
[1721718720034,1.13398666,66621.0,66620.0,0.065824]
[1721718721349,1.43419166,66621.0,66620.0,0.065824]
[1721718721725,1.57852509,66621.0,66620.0,0.065824]
[1721718721927,1.56976423,66621.0,66620.0,0.000924]
[1721718722159,1.51900066,66621.0,66620.0,0.000924]
[1721718722353,1.61900066,66621.0,66620.0,0.000924]
[1721718722567,2.0709013,66621.0,66620.0,0.000924]
[1721718722800,2.0209013,66621.0,66620.0,0.000924]
[1721718722968,2.0709013,66621.0,66620.0,0.000924]
[1721718723178,1.86912158,66621.0,66620.0,0.000924]
[1721718725056,1.86919214,66621.0,66620.0,0.000924]
[1721718725450,1.81919214,66621.0,66620.0,0.000924]
[1721718726264,1.67485871,66621.0,66620.0,0.000924]
[1721718727953,1.59079523,66621.0,66620.0,0.000924]
[1721718728103,1.67531354,66621.0,66620.0,0.000924]
[1721718728454,1.44777876,66621.0,66620.0,0.065024]
[1721718729361,1.74798376,66621.0,66620.0,0.065024]
[1721718729496,1.74798376,66621.0,66620.0,0.000924]
[1721718730100,1.44777876,66621.0,66620.0,0.000924]
[1721718730842,1.44772422,66621.0,66620.0,0.000924]
[1721718731246,1.44756149,66621.0,66620.0,0.000924]
[1721718731763,1.44783428,66621.0,66620.0,0.000924]
[1721718732051,1.2962555,66621.0,66620.0,0.000924]
[1721718732953,1.44321815,66621.0,66620.0,0.000924]
[1721718733311,1.74342315,66621.0,66620.0,0.000924]
[1721718733509,1.97670193,66621.0,66620.0,0.000924]
[1721718734086,1.89193397,66621.0,66620.0,0.000924]
[1721718734261,1.9765154,66621.0,66620.0,0.000924]
[1721718735716,1.6763104,66621.0,66620.0,0.000924]
[1721718735909,1.9765154,66621.0,66620.0,0.000924]
[1721718736793,2.0765154,66621.0,66620.0,0.000924]
[1721718737202,1.92505525,66621.0,66620.0,0.000924]
[1721718737630,2.28027516,66621.0,66620.0,0.000924]
[1721718737833,2.69796503,66621.0,66620.0,0.000924]
[1721718738045,2.75826503,66621.0,66620.0,0.000924]
[1721718738657,2.74326503,66621.0,66620.0,0.000924]
[1721718739080,2.77126503,66621.0,66620.0,0.000924]
[1721718739610,1.96887747,66621.0,66620.0,0.000924]
[1721718740077,2.06700023,66621.0,66620.0,0.000924]
[1721718740336,1.39091843,66621.0,66620.0,0.000924]
[1721718740547,1.30921843,66621.0,66620.0,0.000924]
[1721718740743,1.46058793,66621.0,66620.0,0.000924]
[1721718741291,1.60755058,66621.0,66620.0,0.000924]
[1721718742678,1.30921843,66621.0,66620.0,0.000924]
[1721718743190,1.30921843,66621.0,66620.0,0.062224]
[1721718743191,1.20932079,66621.0,66620.0,0.062224]
[1721718743407,1.34381147,66621.0,66620.0,0.062224]
[1721718743612,1.12459023,66621.0,66620.0,0.062224]
[1721718743814,1.20954401,66621.0,66620.0,0.062224]
[1721718744021,1.18154401,66621.0,66620.0,0.062224]
[1721718744443,1.19054401,66621.0,66620.0,0.062224]
[1721718744644,1.29054401,66621.0,66620.0,0.062224]
[1721718744845,1.28154401,66621.0,66620.0,0.062224]
[1721718745001,1.28654401,66621.0,66620.0,0.062224]
[1721718745404,1.28854401,66621.0,66620.0,0.062224]
[1721718745800,1.28654401,66621.0,66620.0,0.062224]
[1721718746579,1.2868389,66621.0,66620.0,0.062224]
[1721718747776,1.2868389,66621.0,66620.0,0.063224]
[1721718747963,1.43154426,66621.0,66620.0,0.063224]
[1721718749179,1.43154426,66621.0,66620.0,0.062224]
[1721718749965,1.42654426,66621.0,66620.0,0.062224]
[1721718750195,1.43554426,66621.0,66620.0,0.062224]
[1721718750366,1.43754426,66621.0,66620.0,0.062224]
[1721718750774,1.42654426,66621.0,66620.0,0.062224]
[1721718750910,1.28281464,66621.0,66620.0,0.062224]
[1721718751108,1.29081464,66621.0,66620.0,0.062224]
[1721718751924,1.29081464,66621.0,66620.0,0.000924]
[1721718752329,1.69101964,66621.0,66620.0,0.000924]
[1721718752532,1.64064377,66621.0,66620.0,0.000924]
[1721718752746,1.78760642,66621.0,66620.0,0.000924]
[1721718752959,1.77960642,66621.0,66620.0,0.000924]
[1721718753395,1.78760642,66621.0,66620.0,0.000924]
[1721718753597,1.78660642,66621.0,66620.0,0.000924]
[1721718754181,1.78760642,66621.0,66620.0,0.000924]
[1721718754899,1.83760642,66621.0,66620.0,0.000924]
[1721718755564,1.83763089,66621.0,66620.0,0.000924]
[1721718755928,1.82895788,66621.0,66620.0,0.000924]
[1721718756159,1.91382868,66621.0,66620.0,0.000924]
[1721718756360,1.97992868,66621.0,66620.0,0.000924]
[1721718757220,1.92992868,66621.0,66620.0,0.000924]
[1721718757498,1.4417668,66621.0,66620.0,0.067024]
[1721718757908,1.29046103,66621.0,66620.0,0.067024]
[1721718758521,1.20559023,66621.0,66620.0,0.067024]
[1721718758731,1.29052684,66621.0,66620.0,0.067024]
[1721718759138,1.59073184,66621.0,66620.0,0.067024]
[1721718759347,1.29052684,66621.0,66620.0,0.067024]
[1721718761195,1.24465361,66621.0,66620.0,0.067024]
[1721718761402,1.29052684,66621.0,66620.0,0.067024]
[1721718761599,1.20559023,66621.0,66620.0,0.067024]
[1721718761831,1.29059802,66621.0,66620.0,0.067024]
[1721718761979,1.1248877,66621.0,66620.0,0.145124]
[1721718762389,0.99039302,66621.0,66620.0,0.145124]
[1721718764601,0.90538523,66621.0,66620.0,0.145124]
[1721718765213,1.04030748,66621.0,66620.0,0.067024]
[1721718765429,1.34051248,66621.0,66620.0,0.067024]
[1721718765627,1.45635472,66621.0,66620.0,0.067024]
[1721718767234,1.45635472,66621.0,66620.0,0.000924]
[1721718767235,1.59084632,66621.0,66620.0,0.000924]
[1721718767433,1.57215472,66621.0,66620.0,0.000924]
[1721718767686,1.75651748,66621.0,66620.0,0.000924]
[1721718767887,1.87184101,66621.0,66620.0,0.000924]
[1721718768231,1.75651748,66621.0,66620.0,0.000924]
[1721718768424,1.95239968,66621.0,66620.0,0.000924]
[1721718769615,1.90239968,66621.0,66620.0,0.000924]
[1721718770381,1.95239968,66621.0,66620.0,0.000924]
[1721718770833,1.95221189,66621.0,66620.0,0.000924]
[1721718771494,1.76728964,66621.0,66620.0,0.000924]
[1721718771725,1.70148964,66621.0,66620.0,0.000924]
[1721718773980,1.70155113,66621.0,66620.0,0.000924]
[1721718775789,1.3554729,66621.0,66620.0,0.000924]
[1721718775992,1.40134613,66621.0,66620.0,0.000924]
[1721718776192,1.32074613,66621.0,66620.0,0.000924]
[1721718776397,1.32074613,66621.0,66620.0,0.060924]
[1721718776975,1.32119849,66621.0,66620.0,0.060924]
[1721718777181,1.32119849,66621.0,66620.0,0.143224]
[1721718777389,1.45561505,66621.0,66620.0,0.143224]
[1721718777604,1.40974182,66621.0,66620.0,0.143224]
[1721718777812,0.83281165,66621.0,66620.0,0.143224]
[1721718778021,0.61720339,66621.0,66620.0,0.143224]
[1721718778241,0.50518023,66621.0,66620.0,0.143224]
[1721718778473,0.59479976,66621.0,66620.0,0.143224]
[1721718779367,0.68679976,66621.0,66620.0,0.143224]
[1721718779623,0.60218023,66621.0,66620.0,0.143224]
[1721718780141,0.60118023,66621.0,66620.0,0.143224]
[1721718780590,1.01337922,66621.0,66620.0,0.061924]
[1721718780792,1.31728824,66621.0,66620.0,0.061924]
[1721718782238,1.46403989,66621.0,66620.0,0.061924]
[1721718782446,1.76424489,66621.0,66620.0,0.001924]
[1721718782652,1.89865775,66621.0,66620.0,0.001924]
[1721718782855,1.76424489,66621.0,66620.0,0.001924]
[1721718783069,1.76395764,66621.0,66620.0,0.001924]
[1721718784055,2.00945764,66621.0,66620.0,0.001924]
[1721718784393,1.96182922,66621.0,66620.0,0.001924]
[1721718784710,1.99064184,66621.0,66620.0,0.001924]
[1721718784908,1.89642245,66621.0,66620.0,0.001924]
[1721718785111,1.72885788,66621.0,66620.0,0.001924]
[1721718785312,1.73948293,66621.0,66620.0,0.000924]
[1721718785731,1.75348293,66621.0,66620.0,0.000924]
[1721718786198,1.73948293,66621.0,66620.0,0.000924]
[1721718786586,1.75348293,66621.0,66620.0,0.000924]
[1721718787025,1.76248293,66621.0,66620.0,0.000924]
[1721718787254,1.75348293,66621.0,66620.0,0.000924]
[1721718787465,1.75347731,66621.0,66620.0,0.000924]
[1721718787664,1.76247731,66621.0,66620.0,0.000924]
[1721718788226,1.59879799,66621.0,66620.0,0.000924]
[1721718788430,1.86105115,66621.0,66620.0,0.000924]
[1721718788996,1.70985127,66621.0,66620.0,0.000924]
[1721718789797,1.86105115,66621.0,66620.0,0.000924]
[1721718790016,1.70985127,66621.0,66620.0,0.000924]
[1721718791064,2.1080138,66621.0,66620.0,0.000924]
[1721718791275,1.99696051,66621.0,66620.0,0.000924]
[1721718791394,2.05752402,66621.0,66620.0,0.000924]
[1721718791601,1.90632415,66621.0,66620.0,0.000924]
[1721718791863,2.05752193,66621.0,66620.0,0.000924]
[1721718792400,1.95868454,66621.0,66620.0,0.000924]
[1721718792604,2.04775501,66621.0,66620.0,0.000924]
[1721718793013,2.81397992,66621.0,66620.0,0.000924]
[1721718794931,2.76397992,66621.0,66620.0,0.000924]
[1721718795410,2.76397992,66621.0,66620.0,0.066424]
[1721718795411,1.68162816,66621.0,66620.0,0.066424]
[1721718795829,1.78046277,66621.0,66620.0,0.066424]
[1721718796000,1.78458954,66621.0,66620.0,0.066424]
[1721718796205,1.32905566,66621.0,66620.0,0.066424]
[1721718797269,1.32913111,66621.0,66620.0,0.066424]
[1721718799041,1.02892611,66621.0,66620.0,0.066424]
[1721718799321,0.62872111,66621.0,66620.0,0.149624]
[1721718799516,0.51808299,66621.0,66620.0,0.149624]
[1721718800024,0.60769838,66621.0,66620.0,0.149624]
[1721718800223,0.59369838,66621.0,66620.0,0.1557947]
[1721718800437,0.50408299,66621.0,66620.0,0.1557947]
[1721718800643,0.26160859,66621.0,66620.0,0.1557947]
[1721718800878,0.11260383,66621.0,66620.0,0.30281461]
[1721718801090,0.09020615,66621.0,66620.0,0.30281461]
[1721718801314,0.014,66621.0,66620.0,0.30281461]
[1721718801525,0.06079612,66621.0,66620.0,0.30281461]
[1721718801736,0.05879612,66621.0,66620.0,0.30281461]
[1721718802008,0.05879612,66621.0,66620.0,0.77612961]
[1721718802224,0.04479612,66625.0,66622.0,0.1501]
[1721718802441,0.06720615,66627.0,66622.0,0.1501]
[1721718802442,0.04587323,66626.0,66624.0,0.0801]
[1721718802641,0.04479612,66628.0,66627.0,0.150089]
[1721718802790,0.04479612,66629.0,66628.0,0.593361]
[1721718802976,0.00084,66630.0,66628.0,0.46320691]
[1721718803156,0.04562501,66630.0,66629.0,0.38630391]
[1721718803359,0.00084,66630.0,66629.0,0.39243518]
[1721718803554,0.00084,66630.0,66629.0,1.07387318]
[1721718803758,0.00084,66630.0,66629.0,0.77370418]
[1721718805175,0.00084,66630.0,66629.0,0.9111113]
[1721718805522,0.00284,66630.0,66629.0,0.9131113]
[1721718805942,0.00184,66630.0,66629.0,0.9131113]
[1721718806143,0.00184,66630.0,66629.0,0.77570418]
[1721718806727,0.00284,66630.0,66629.0,0.77870418]
[1721718806896,0.00284,66630.0,66629.0,1.07887318]
[1721718807114,0.00284,66630.0,66629.0,0.77870418]
[1721718808267,0.00284,66630.0,66629.0,1.11797092]
[1721718810539,0.00284,66630.0,66629.0,1.41814092]
[1721718813259,0.00284,66630.0,66629.0,1.71830992]
[1721718813484,0.00284,66630.0,66629.0,1.41814092]
[1721718814304,0.00284,66630.0,66629.0,1.71830992]
[1721718814504,0.00284,66630.0,66629.0,1.41814092]
[1721718814852,0.00284,66630.0,66629.0,1.77243669]
[1721718815387,0.00284,66630.0,66629.0,1.82243669]
[1721718815818,0.00084,66630.0,66629.0,1.81743669]
[1721718816412,0.00184,66630.0,66629.0,1.81943669]
[1721718816708,0.00184,66630.0,66629.0,2.11960569]
[1721718816908,0.00184,66630.0,66629.0,1.81943669]
[1721718817343,0.00284,66630.0,66629.0,1.82143669]
[1721718817707,0.00184,66630.0,66629.0,2.11960569]
[1721718817907,0.00184,66630.0,66629.0,1.81943669]
[1721718818224,0.00284,66630.0,66629.0,1.83343669]
[1721718818422,0.00084,66630.0,66629.0,1.81743669]
[1721718818843,0.00084,66630.0,66629.0,1.83143669]
[1721718819035,0.00184,66630.0,66629.0,1.84443669]
[1721718819659,0.00084,66630.0,66629.0,1.83143669]
[1721718819855,0.00084,66630.0,66629.0,1.81743669]
[1721718820259,0.00184,66630.0,66629.0,2.13936169]
[1721718820572,0.00184,66630.0,66629.0,1.83919269]
[1721718820991,0.00184,66630.0,66629.0,2.13936169]
[1721718821393,0.00184,66630.0,66629.0,1.83919269]
[1721718821591,0.00284,66630.0,66629.0,1.85319269]
[1721718821820,0.00184,66630.0,66629.0,1.83919269]
[1721718822212,0.00084,66630.0,66629.0,1.82619269]
[1721718822335,0.00084,66630.0,66629.0,2.12636169]
[1721718822542,0.00284,66630.0,66629.0,2.14836169]
[1721718823378,0.00284,66630.0,66629.0,1.84819269]
[1721718823774,0.00284,66630.0,66629.0,2.14836169]
[1721718825416,0.00284,66630.0,66629.0,1.84406592]
[1721718825671,0.00284,66630.0,66629.0,1.84819269]
[1721718826417,0.00184,66630.0,66629.0,1.83419269]
[1721718826995,0.00284,66630.0,66629.0,1.84406592]
[1721718827202,0.00184,66630.0,66629.0,1.37379918]
[1721718827617,0.04771323,66630.0,66629.0,0.53352118]
[1721718827841,0.00184,66630.0,66629.0,0.53352118]
[1721718828244,0.00184,66630.0,66629.0,0.66960518]
[1721718828245,0.00084,66630.0,66629.0,0.66960518]
[1721718828444,0.00084,66630.0,66629.0,0.96977418]
[1721718828652,0.00284,66630.0,66629.0,0.99177418]
[1721718828856,0.00284,66630.0,66629.0,1.49143328]
[1721718829059,0.00184,66630.0,66629.0,1.98800228]
[1721718829263,0.00184,66630.0,66629.0,2.00200228]
[1721718829433,0.00284,66630.0,66629.0,2.01000228]
[1721718829686,0.00284,66630.0,66629.0,1.91261218]
[1721718830853,0.00284,66630.0,66629.0,1.96261218]
[1721718832267,0.00284,66630.0,66629.0,1.96673895]
[1721718832508,0.00284,66630.0,66629.0,1.97552518]
[1721718832829,0.00284,66630.0,66629.0,2.12248783]
[1721718833030,0.00284,66630.0,66629.0,2.11836106]
[1721718835084,0.00284,66630.0,66629.0,2.19556876]
[1721718835721,0.00284,66630.0,66629.0,2.10273288]
[1721718835954,0.00284,66630.0,66629.0,2.09860611]
[1721718836941,0.00284,66630.0,66629.0,2.02139841]
[1721718837169,0.00284,66630.0,66629.0,2.09855233]
[1721718840032,0.00284,66630.0,66629.0,2.02552518]
[1721718840235,0.00284,66630.0,66629.0,2.54954044]
[1721718840793,0.00284,66630.0,66629.0,0.62719102]
[1721718840998,0.00284,66630.0,66629.0,0.99177418]
[1721718841624,0.00284,66630.0,66629.0,1.29194318]
[1721718841833,0.00284,66630.0,66629.0,0.99177418]
[1721718842204,0.00284,66630.0,66629.0,0.94857418]
[1721718842455,0.00284,66630.0,66629.0,0.47532118]
[1721718842456,0.04871323,66630.0,66629.0,0.47532118]
[1721718843008,0.00284,66630.0,66629.0,0.47532118]
[1721718844236,0.04871323,66630.0,66629.0,0.47532118]
[1721718844640,0.00284,66630.0,66629.0,0.49832118]
[1721718845392,0.00284,66630.0,66629.0,0.6231996]
[1721718845805,0.00284,66630.0,66629.0,0.49832118]
[1721718847735,0.04871323,66630.0,66629.0,0.49832118]
[1721718848279,0.79912523,66630.0,66629.0,0.47532118]
[1721718848543,0.94522523,66630.0,66629.0,0.47532118]
[1721718848925,0.94522523,66630.0,66629.0,0.32830127]
[1721718848926,1.24539023,66630.0,66629.0,0.32830127]
[1721718849126,1.2901139,66630.0,66629.0,0.32830127]
[1721718849326,1.2901139,66630.0,66629.0,0.31417]
[1721718849327,1.35037166,66630.0,66629.0,0.31417]
[1721718849626,1.34937166,66630.0,66629.0,0.30577435]
[1721718849835,1.35037166,66630.0,66629.0,0.31717]
[1721718850024,1.35137166,66630.0,66629.0,0.31717]
[1721718850227,1.35037166,66630.0,66629.0,0.30617]
[1721718850586,1.31141803,66630.0,66629.0,0.30817]
[1721718850787,1.31141803,66630.0,66629.0,0.31377435]
[1721718850990,1.28807879,66630.0,66629.0,0.30777435]
[1721718851200,1.28807879,66630.0,66629.0,0.30217]
[1721718851389,1.24539023,66630.0,66629.0,0.30217]
[1721718851587,1.24539023,66630.0,66629.0,0.30777435]
[1721718851785,1.24539023,66630.0,66629.0,0.30017]
[1721718851786,1.24339023,66630.0,66629.0,0.30017]
[1721718852193,1.25339023,66630.0,66629.0,0.30017]
[1721718852403,1.29807725,66630.0,66629.0,0.30017]
[1721718852598,0.57656023,66630.0,66629.0,0.30017]
[1721718852936,0.57856023,66630.0,66629.0,0.30017]
[1721718853268,0.87872523,66630.0,66629.0,0.30017]
[1721718853611,0.87872523,66630.0,66629.0,0.30417]
[1721718853806,0.87872523,66630.0,66629.0,0.30577435]
[1721718854400,0.87672523,66630.0,66629.0,0.30577435]
[1721718854592,0.87672523,66630.0,66629.0,0.30017]
[1721718854793,0.87672523,66630.0,66629.0,0.30577435]
[1721718855056,0.57756023,66630.0,66629.0,0.31177435]
[1721718855245,0.08144,66630.0,66629.0,0.45879426]
[1721718855455,0.08044,66630.0,66629.0,0.45279426]
[1721718855661,0.12631323,66630.0,66629.0,0.45279426]
[1721718855880,0.27739523,66630.0,66629.0,0.46179426]
[1721718856082,0.27639523,66630.0,66629.0,0.45479426]
[1721718856359,0.12731323,66630.0,66629.0,0.46579426]
[1721718857347,0.12731323,66630.0,66629.0,0.46379426]
[1721718857551,0.27739523,66630.0,66629.0,0.46379426]
[1721718857760,0.27739523,66630.0,66629.0,0.46879426]
[1721718858920,0.12731323,66630.0,66629.0,0.46879426]
[1721718861787,0.08144,66630.0,66629.0,0.46879426]
[1721718862043,0.27739523,66630.0,66629.0,0.46879426]
[1721718862374,0.12731323,66630.0,66629.0,0.46879426]
[1721718863204,0.08144,66630.0,66629.0,0.46879426]
[1721718863402,0.12731323,66630.0,66629.0,0.46879426]
[1721718864915,0.08144,66630.0,66629.0,0.46879426]
[1721718865205,0.12731323,66630.0,66629.0,0.46879426]
[1721718865414,0.08144,66630.0,66629.0,0.46879426]
[1721718865616,0.08144,66630.0,66629.0,0.98093549]
[1721718865617,0.00184,66630.0,66629.0,0.98093549]
[1721718865838,0.00184,66630.0,66629.0,1.60598526]
[1721718866286,0.00184,66630.0,66629.0,1.68518438]
[1721718866505,0.00184,66630.0,66629.0,1.60598526]
[1721718867120,0.00184,66630.0,66629.0,1.60098526]
[1721718867328,0.00184,66630.0,66629.0,1.59998526]
[1721718867556,0.00184,66630.0,66629.0,1.67949453]
[1721718867756,0.00284,66630.0,66629.0,1.61198526]
[1721718867960,0.00184,66630.0,66629.0,1.74894791]
[1721718868160,0.00284,66630.0,66629.0,1.75894791]
[1721718868363,0.00284,66630.0,66629.0,1.80894791]
[1721718868514,0.00284,66630.0,66629.0,1.89246316]
[1721718868914,0.00284,66630.0,66629.0,1.83833639]
[1721718869116,0.00284,66630.0,66629.0,1.69137374]
[1721718869716,0.00284,66630.0,66629.0,1.74137374]
[1721718869897,0.00184,66630.0,66629.0,1.67937374]
[1721718870124,0.00184,66630.0,66629.0,1.66937374]
[1721718870125,0.00084,66630.0,66629.0,1.66937374]
[1721718870334,0.00084,66630.0,66629.0,1.68337374]
[1721718870541,0.00184,66630.0,66629.0,1.74737374]
[1721718870945,0.00184,66630.0,66629.0,1.73337374]
[1721718870946,0.00084,66630.0,66629.0,1.73337374]
[1721718871177,0.00084,66630.0,66629.0,1.65398526]
[1721718871372,0.00184,66630.0,66629.0,1.66798526]
[1721718871678,0.00184,66630.0,66629.0,1.81494791]
[1721718871879,0.00084,66630.0,66629.0,1.00364726]
[1721718872082,0.00084,66630.0,66629.0,0.98964726]
[1721718872301,0.00084,66630.0,66629.0,0.63987826]
[1721718872474,0.00184,66630.0,66629.0,0.46679426]
[1721718872671,0.00184,66630.0,66629.0,0.60287826]
[1721718873119,0.00284,66630.0,66629.0,0.61687826]
[1721718873362,0.00284,66630.0,66629.0,0.61287826]
[1721718873363,0.00184,66630.0,66629.0,0.61287826]
[1721718873565,0.00184,66630.0,66629.0,0.92704726]
[1721718873742,0.00184,66630.0,66629.0,0.48979426]
[1721718873989,0.04771323,66630.0,66629.0,0.47579426]
[1721718874188,0.19879523,66630.0,66629.0,0.48579426]
[1721718874399,0.04871323,66630.0,66629.0,0.48579426]
[1721718874738,0.19879523,66630.0,66629.0,0.48579426]
[1721718875284,0.19979523,66630.0,66629.0,0.49979426]
[1721718877735,0.19979523,66630.0,66629.0,0.49418991]
[1721718877943,0.04971323,66630.0,66629.0,0.50007727]
[1721718878374,0.00384,66630.0,66629.0,0.50007727]
[1721718878577,0.00384,66630.0,66629.0,0.71116127]
[1721718878780,0.00384,66630.0,66629.0,1.31149927]
[1721718883578,0.00384,66630.0,66629.0,1.01133027]
[1721718887810,0.00384,66630.0,66629.0,1.31149927]
[1721718888370,0.00384,66630.0,66629.0,1.61166827]
[1721718888619,0.00384,66630.0,66629.0,1.6912828]
[1721718888964,0.00384,66630.0,66629.0,1.61166827]
[1721718890654,0.00384,66630.0,66629.0,1.75863092]
[1721718891197,0.00384,66630.0,66629.0,1.83809086]
[1721718891418,0.00384,66630.0,66629.0,1.69112786]